lending/lending_fUSD_20260312
["ID","MTS","AMOUNT","RATE_DAILY","PERIOD"]
[408242178,1773299433672,-500.0,0.00019073,2]
[408242179,1773299433681,-500.0,0.00019073,2]
[408242180,1773299433690,-500.44254829,0.00019073,2]
[408242181,1773299433700,-500.48646595,0.00019073,2]
[408242182,1773299433709,-500.0,0.00019073,2]
[408242183,1773299433718,-500.0,0.00019073,2]
[408242184,1773299433727,-505.86891744,0.00019073,2]
[408242185,1773299433736,-364.70284885,0.00019107,2]
[408242186,1773299433746,-155.0,0.00019173,3]
[408242187,1773299433755,-1000.0,0.00019178,2]
[408242188,1773299433763,-150.14636363,0.00019178,2]
[408242189,1773299433772,-240.0,0.00019211,3]
[408242190,1773299433781,-1790.51,0.00019286,2]
[408242191,1773299433790,-364.70284885,0.00019294,2]
[408242192,1773299433799,-1000.0,0.00019452,2]
[408242193,1773299433808,-1213.0,0.00019453,2]
[408242194,1773299433817,-1499.017,0.00019453,2]
[408242195,1773299433826,-3751.0,0.00019453,2]
[408242196,1773299433835,-11460.8649,0.00019469,2]
[408242197,1773299433844,-1000.0,0.00019469,2]
[408242198,1773299433853,-250.0,0.0001947,2]
[408242199,1773299433862,-240.0,0.00019489,3]
[408242200,1773299433872,-2000.0,0.000195,2]
[408242201,1773299433880,-466.36895032,0.000195,2]
[408242202,1773299433890,-155.0,0.00019527,3]
[408242203,1773299433899,-1403.21,0.00019534,2]
[408242204,1773299433909,-500.0,0.00019562,2]
[408242205,1773299433918,-933.0,0.00019562,2]
[408242206,1773299433927,-500.0,0.00019562,2]
[408242207,1773299433936,-500.0,0.00019562,2]
[408242208,1773299433946,-150.0,0.00019562,2]
[408242209,1773299433958,-500.0,0.00019562,2]
[408242210,1773299433967,-500.0,0.00019562,2]
[408242211,1773299433976,-150.0,0.00019562,2]
[408242212,1773299433987,-420.0,0.00019562,2]
[408242213,1773299433997,-150.0,0.00019562,2]
[408242214,1773299434009,-500.0,0.00019562,2]
[408242215,1773299434018,-500.0,0.00019562,2]
[408242216,1773299434027,-150.0,0.00019562,2]
[408242217,1773299434037,-177.99151511,0.00019562,2]
[408242218,1773299434046,-500.0,0.00019562,2]
[408242219,1773299434055,-500.0,0.00019562,2]
[408242220,1773299434065,-154.81144143,0.00019562,2]
[408242221,1773299434074,-200.0,0.00019562,2]
[408242222,1773299434084,-150.0,0.00019562,2]
[408242223,1773299434095,-500.0,0.00019562,2]
[408242224,1773299434106,-150.0,0.00019562,2]
[408242225,1773299434115,-500.0,0.00019562,2]
[408242226,1773299434125,-150.0,0.00019562,2]
[408242227,1773299434135,-150.0,0.00019562,2]
[408242228,1773299434145,-500.0,0.00019562,2]
[408242229,1773299434155,-500.0,0.00019562,2]
[408242230,1773299434164,-500.0,0.00019562,2]
[408242231,1773299434173,-500.0,0.00019562,2]
[408242232,1773299434182,-500.0,0.00019562,2]
[408242233,1773299434190,-637.0,0.00019562,2]
[408242234,1773299434199,-150.0,0.00019562,2]
[408242235,1773299434208,-150.0,0.00019562,2]
[408242236,1773299434217,-150.0,0.00019562,2]
[408242237,1773299434225,-500.0,0.00019562,2]
[408242238,1773299434234,-156.77659394,0.00019562,2]
[408242239,1773299434243,-500.0,0.00019562,2]
[408242240,1773299434252,-500.0,0.00019562,2]
[408242241,1773299434261,-214.86194444,0.00019562,2]
[408242242,1773299434280,-150.0,0.00019562,2]
[408242243,1773299434298,-150.0,0.00019562,2]
[408242244,1773299434307,-500.0,0.00019562,2]
[408242245,1773299434316,-150.0,0.00019562,2]
[408242246,1773299434325,-500.0,0.00019562,2]
[408242247,1773299434334,-500.0,0.00019569,2]
[408242248,1773299434346,-500.0,0.00019569,2]
[408242249,1773299434355,-500.0,0.00019569,2]
[408242250,1773299434364,-504.12406737,0.00019569,2]
[408242251,1773299434373,-500.0,0.00019569,2]
[408242252,1773299434383,-500.0,0.00019569,2]
[408242253,1773299434394,-500.0,0.00019569,2]
[408242254,1773299434403,-500.0,0.00019569,2]
[408242255,1773299434414,-500.0,0.00019569,2]
[408242256,1773299434424,-2012.61911856,0.000196,2]
[408242257,1773299434433,-165.0,0.000196,2]
[408242258,1773299434442,-166.0,0.00019602,14]
[408242259,1773299434451,-274.0,0.00019602,14]
[408242260,1773299434460,-300.0,0.00019612,2]
[408242261,1773299434470,-500.0,0.00019616,2]
[408242262,1773299434479,-500.0,0.00019616,2]
[408242263,1773299434488,-150.0,0.00019616,2]
[408242264,1773299434497,-500.0,0.00019616,2]
[408242265,1773299434506,-500.0,0.00019617,2]
[408242266,1773299434515,-933.0,0.00019617,2]
[408242267,1773299434524,-500.0,0.00019617,2]
[408242268,1773299434533,-500.0,0.00019617,2]
[408242269,1773299434542,-150.0,0.00019617,2]
[408242270,1773299434551,-500.0,0.00019617,2]
[408242271,1773299434560,-500.0,0.00019617,2]
[408242272,1773299434569,-420.0,0.00019617,2]
[408242273,1773299434578,-605.47740234,0.00019617,2]
[408242274,1773299434587,-455.47206266,0.00019617,2]
[408242275,1773299434597,-500.0,0.00019617,2]
[408242276,1773299434605,-500.0,0.00019617,2]
[408242277,1773299434614,-150.0,0.00019617,2]
[408242278,1773299434623,-500.0,0.00019617,2]
[408242279,1773299434632,-150.0,0.00019617,2]
[408242280,1773299434642,-500.0,0.00019617,2]
[408242281,1773299434651,-150.0,0.00019617,2]
[408242282,1773299434660,-150.0,0.00019617,2]
[408242283,1773299434670,-500.0,0.00019617,2]
[408242284,1773299434679,-500.0,0.00019617,2]
[408242285,1773299434689,-500.0,0.00019617,2]
[408242286,1773299434700,-500.0,0.00019617,2]
[408242287,1773299434710,-637.0,0.00019617,2]
[408242288,1773299434719,-150.0,0.00019617,2]
[408242289,1773299434728,-500.0,0.00019617,2]
[408242290,1773299434737,-150.0,0.00019617,2]
[408242291,1773299434750,-150.0,0.00019617,2]
[408242292,1773299434759,-500.0,0.00019617,2]
[408242293,1773299434769,-500.0,0.00019617,2]
[408242294,1773299434780,-500.0,0.00019617,2]
[408242295,1773299434790,-150.0,0.00019617,2]
[408242296,1773299434800,-500.0,0.00019617,2]
[408242297,1773299434809,-150.0,0.00019617,2]
[408242298,1773299434818,-500.0,0.00019617,2]
[408242299,1773299434829,-500.0,0.00019621,2]
[408242300,1773299434838,-500.83679939,0.00019621,2]
[408242301,1773299434847,-232.02497662,0.00019621,2]
[408242302,1773299434856,-1000.0,0.00019621,2]
[408242303,1773299434865,-200.0,0.00019653,2]
[408242304,1773299434874,-200.0,0.0001966,2]
[408242305,1773299434884,-500.0,0.00019671,2]
[408242306,1773299434893,-500.0,0.00019671,2]
[408242307,1773299434903,-150.0,0.00019671,2]
[408242308,1773299434913,-10.91986336,0.00019671,2]
[408242309,1773299434929,-489.08013664,0.00019671,2]
[408242310,1773299434938,-500.0,0.00019672,2]
[408242311,1773299434947,-933.0,0.00019672,2]
[408242312,1773299434958,-500.0,0.00019672,2]
[408242313,1773299434967,-500.0,0.00019672,2]
[408242314,1773299434976,-150.0,0.00019672,2]
[408242315,1773299434985,-500.0,0.00019672,2]
[408242316,1773299434994,-420.0,0.00019672,2]
[408242317,1773299435004,-500.0,0.00019672,2]
[408242318,1773299435013,-500.0,0.00019672,2]
[408242319,1773299435022,-150.0,0.00019672,2]
[408242320,1773299435032,-500.0,0.00019672,2]
[408242321,1773299435042,-150.0,0.00019672,2]
[408242322,1773299435051,-500.0,0.00019672,2]
[408242323,1773299435061,-150.0,0.00019672,2]
[408242324,1773299435070,-150.0,0.00019672,2]
[408242325,1773299435080,-500.0,0.00019672,2]
[408242326,1773299435093,-500.0,0.00019672,2]
[408242327,1773299435102,-500.0,0.00019672,2]
[408242328,1773299435111,-500.0,0.00019672,2]
[408242329,1773299435121,-637.0,0.00019672,2]
[408242330,1773299435130,-251.70358089,0.00019672,2]
[408242331,1773299435140,-500.0,0.00019672,2]
[408242332,1773299435150,-500.0,0.00019672,2]
[408242333,1773299435159,-150.0,0.00019672,2]
[408242334,1773299435171,-500.0,0.00019672,2]
[408242335,1773299435180,-152.96458514,0.00019672,2]
[408242336,1773299435189,-500.0,0.00019672,2]
[408242337,1773299435198,-162.54927809,0.00019672,2]
[408242338,1773299435208,-500.0,0.00019672,2]
[408242339,1773299435217,-151.48472709,0.00019673,2]
[408242340,1773299435226,-200.0,0.00019708,2]
[408242341,1773299435236,-500.0,0.00019726,2]
[408242342,1773299435246,-445.54749734,0.00019726,2]
[408242343,1773299435255,-150.0,0.00019726,2]
[408242344,1773299435265,-500.0,0.00019726,2]
[408242345,1773299435274,-200.0,0.00019726,2]
[408242346,1773299435283,-1552.43681819,0.00019726,2]
[408242347,1773299435294,-487.86945979,0.00019726,2]
[408242348,1773299435303,-273.53962329,0.00019726,2]
[408242349,1773299435313,-1000.0,0.00019726,2]
[408242350,1773299435322,-500.0,0.00019726,2]
[408242351,1773299435332,-933.0,0.00019726,2]
[408242352,1773299435341,-500.0,0.00019726,2]
[408242353,1773299435350,-500.0,0.00019726,2]
[408242354,1773299435360,-150.0,0.00019726,2]
[408242355,1773299435369,-500.0,0.00019726,2]
[408242356,1773299435378,-420.0,0.00019726,2]
[408242357,1773299435388,-500.0,0.00019726,2]
[408242358,1773299435397,-500.0,0.00019726,2]
[408242359,1773299435406,-277.8166161,0.00019726,2]
[408242360,1773299435416,-500.0,0.00019726,2]
[408242361,1773299435425,-150.0,0.00019726,2]
[408242362,1773299435435,-500.0,0.00019726,2]
[408242363,1773299435444,-150.0,0.00019726,2]
[408242364,1773299435454,-150.0,0.00019726,2]
[408242365,1773299435463,-500.0,0.00019726,2]
[408242366,1773299435473,-500.0,0.00019726,2]
[408242367,1773299435482,-500.0,0.00019726,2]
[408242368,1773299435495,-500.0,0.00019726,2]
[408242369,1773299435505,-637.0,0.00019726,2]
[408242370,1773299435515,-519.05367316,0.00019726,2]
[408242371,1773299435525,-500.0,0.00019726,2]
[408242372,1773299435534,-500.0,0.00019726,2]
[408242373,1773299435543,-500.0,0.00019726,2]
[408242374,1773299435552,-500.0,0.00019726,2]
[408242375,1773299435562,-200.0,0.00019756,2]
[408242376,1773299435572,-1790.51,0.00019756,2]
[408242377,1773299435581,-900.33,0.00019768,2]
[408242378,1773299435591,-240.0,0.00019768,3]
[408242379,1773299435600,-470.05006008,0.0001978,2]
[408242380,1773299435609,-150.0,0.0001978,2]
[408242381,1773299435618,-500.0,0.0001978,2]
[408242382,1773299435627,-500.0,0.00019781,2]
[408242383,1773299435636,-933.0,0.00019781,2]
[408242384,1773299435646,-500.0,0.00019781,2]
[408242385,1773299435655,-500.0,0.00019781,2]
[408242386,1773299435665,-150.0,0.00019781,2]
[408242387,1773299435674,-314.57090824,0.00019781,2]
[408242388,1773299435683,-420.0,0.00019781,2]
[408242389,1773299435692,-500.0,0.00019781,2]
[408242390,1773299435702,-500.0,0.00019781,2]
[408242391,1773299435711,-223.89418644,0.00019781,2]
[408242392,1773299435721,-200.0,0.00019781,2]
[408242393,1773299435894,-200.0,0.00019781,2]
[408242394,1773299435903,-286.63340985,0.00019781,2]
[408242395,1773299435913,-500.0,0.00019781,2]
[408242396,1773299435923,-500.0,0.00019781,2]
[408242397,1773299435933,-500.0,0.00019781,2]
[408242398,1773299435943,-500.0,0.00019781,2]
[408242399,1773299435953,-637.0,0.00019781,2]
[408242400,1773299435962,-500.0,0.00019781,2]
[408242401,1773299435972,-500.0,0.00019781,2]
[408242402,1773299435982,-500.0,0.00019781,2]
[408242403,1773299435991,-500.0,0.00019781,2]
[408242404,1773299436001,-200.0,0.00019783,2]
[408242405,1773299436010,-150.0,0.00019783,2]
[408242406,1773299436020,-150.0,0.00019783,2]
[408242407,1773299436029,-150.0,0.00019783,2]
[408242408,1773299436038,-150.0,0.00019783,2]
[408242409,1773299436048,-620.0,0.00019783,2]
[408242410,1773299436058,-1126.995,0.00019783,2]
[408242411,1773299436066,-1343.0,0.00019783,2]
[408242412,1773299436076,-265.0,0.000198,14]
[408242413,1773299436089,-1266.29081,0.000198,2]
[408242414,1773299436099,-1266.29081,0.000198,2]
[408242415,1773299436109,-487.98,0.000198,2]
[408242416,1773299436119,-8067.88,0.000198,2]
[408242417,1773299436131,-390.88344567,0.00019802,2]
[408242418,1773299436141,-1419.61768654,0.0001981,2]
[408242419,1773299436153,-2065.36219313,0.0001981,2]
[408242420,1773299436171,-345.51780687,0.0001981,2]
[408242421,1773299436183,-300.0,0.0001981,2]
[408242426,1773299437712,-1058.806807,0.00018433,2]
[408242428,1773299437723,-950.07107626,0.00018433,2]
[408242432,1773299437774,-1335.68020852,0.00018433,2]
[408242434,1773299440166,-1046.94445197,0.00018433,2]
[408242435,1773299440176,-390.38,0.0001979,2]
[408242436,1773299440187,-390.38,0.000198,2]
[408242437,1773299440197,-390.38,0.000198,2]
[408242438,1773299440206,-390.38,0.000198,2]
[408242439,1773299440215,-221746.06355311,0.0001981,2]
[408242440,1773299440224,-200.0,0.0001981,2]
[408242441,1773299440234,-150.0,0.00019835,2]
[408242442,1773299440243,-600.0,0.00019835,2]
[408242443,1773299440252,-500.0,0.00019836,2]
[408242444,1773299440261,-933.0,0.00019836,2]
[408242445,1773299440271,-500.0,0.00019836,2]
[408242446,1773299440281,-500.0,0.00019836,2]
[408242447,1773299440290,-250.0,0.00019836,2]
[408242448,1773299440300,-420.0,0.00019836,2]
[408242449,1773299440309,-500.0,0.00019836,2]
[408242450,1773299440318,-500.0,0.00019836,2]
[408242451,1773299440328,-500.0,0.00019836,2]
[408242452,1773299440339,-500.0,0.00019836,2]
[408242453,1773299440350,-500.0,0.00019836,2]
[408242454,1773299440360,-500.0,0.00019836,2]
[408242455,1773299440371,-637.0,0.00019836,2]
[408242456,1773299440380,-500.0,0.00019836,2]
[408242457,1773299440392,-500.0,0.00019836,2]
[408242458,1773299440402,-500.0,0.00019836,2]
[408242459,1773299440412,-500.0,0.00019836,2]
[408242460,1773299440422,-200.0,0.0001984,2]
[408242461,1773299440431,-200.0,0.00019842,2]
[408242462,1773299440446,-200.0,0.00019852,2]
[408242463,1773299440460,-17405.78691222,0.0001987,2]
[408242464,1773299440470,-500.0,0.00019873,2]
[408242465,1773299440480,-500.0,0.00019873,2]
[408242466,1773299440489,-500.0,0.00019873,2]
[408242467,1773299440498,-350.0,0.00019876,2]
[408242468,1773299440507,-155.0,0.0001988,3]
[408242469,1773299440516,-179.81278619,0.0001989,2]
[408242470,1773299440526,-390.38,0.0001989,2]
[408242471,1773299440535,-500.0,0.00019891,2]
[408242472,1773299440544,-933.0,0.00019891,2]
[408242473,1773299440553,-500.0,0.00019891,2]
[408242474,1773299440562,-608.31593509,0.00019891,2]
[408242475,1773299440572,-420.0,0.00019891,2]
[408242476,1773299440582,-200.0,0.00019891,2]
[408242477,1773299440598,-500.0,0.00019891,2]
[408242478,1773299440607,-429.29347093,0.00019891,2]
[408242479,1773299440616,-500.0,0.00019891,2]
[408242480,1773299440625,-500.0,0.00019891,2]
[408242481,1773299440635,-500.0,0.00019891,2]
[408242482,1773299440644,-637.0,0.00019891,2]
[408242483,1773299440653,-500.0,0.00019891,2]
[408242484,1773299440662,-500.0,0.00019891,2]
[408242485,1773299440672,-500.0,0.00019891,2]
[408242486,1773299440681,-500.0,0.00019891,2]
[408242487,1773299440690,-99980.0,0.000199,2]
[408242488,1773299440699,-200.0,0.000199,2]
[408242489,1773299440708,-542.41806512,0.000199,2]
[408242490,1773299440717,-197.82059334,0.000199,3]
[408242491,1773299440726,-320.7823411,0.000199,2]
[408242492,1773299440735,-1600.0,0.000199,2]
[408242493,1773299440745,-1205.0,0.000199,2]
[408242494,1773299440754,-200.0,0.00019922,2]
[408242495,1773299440763,-200.0,0.00019945,2]
[408242496,1773299440772,-500.0,0.00019946,2]
[408242497,1773299440781,-933.0,0.00019946,2]
[408242498,1773299440790,-400.0,0.00019946,2]
[408242499,1773299440801,-420.0,0.00019946,2]
[408242500,1773299440810,-500.0,0.00019946,2]
[408242501,1773299440819,-500.0,0.00019946,2]
[408242502,1773299440828,-500.0,0.00019946,2]
[408242503,1773299440838,-637.0,0.00019946,2]
[408242504,1773299440847,-500.0,0.00019946,2]
[408242505,1773299440857,-500.0,0.00019946,2]
[408242506,1773299440867,-500.0,0.00019946,2]
[408242507,1773299440876,-699.0,0.00019957,2]
[408242508,1773299440885,-200.0,0.00019977,2]
[408242509,1773299440894,-699.0,0.00019977,2]
[408242510,1773299440903,-2936.12217059,0.0001998,3]
[408242511,1773299440913,-996.5479628,0.00019983,2]
[408242512,1773299440922,-54492.8738689,0.00019983,2]
[408242513,1773299440931,-401.69623773,0.0001999,2]
[408242514,1773299440940,-401.69623773,0.0001999,2]
[408242515,1773299440951,-14515.5520753,0.00019999,2]
[408242516,1773299440960,-438530.10957325,0.0002,2]
[408242517,1773299440970,-1540.85433812,0.0002,2]
[408242518,1773299440979,-177.37815239,0.0002,2]
[408242519,1773299440988,-1793.32906339,0.0002,2]
[408242520,1773299440997,-2464.68,0.0002,2]
[408242521,1773299441006,-1300.82312217,0.0002,2]
[408242522,1773299441015,-1050.09646487,0.0002,2]
[408242523,1773299441025,-152.0,0.0002,2]
[408242524,1773299441034,-1005.10564484,0.0002,2]
[408242525,1773299441043,-30115.54751795,0.0002,7]
[408242526,1773299441052,-277992.98902245,0.0002,2]
[408242527,1773299441064,-279.89771197,0.0002,2]
[408242528,1773299441075,-640.70959707,0.0002,2]
[408242529,1773299441117,-40.01117105,0.0002,2]
[408242530,1773299441130,-252.42623596,0.0002,2]
[408242531,1773299441141,-954.1022,0.0002,2]
[408242533,1773299444898,-1341.74607904,0.000196,2]
[408242534,1773299444907,-858.82371979,0.000196,2]
[408242535,1773299444917,-1000.0,0.00019672,2]
[408242536,1773299444926,-1000.0,0.00019672,2]
[408242537,1773299444935,-316.988,0.00019672,2]
[408242538,1773299444944,-414.0,0.00019764,2]
[408242539,1773299444952,-6404.80083307,0.000199,2]
[408242540,1773299444962,-101475.00199304,0.0002,2]
[408242541,1773299444980,-672.59625722,0.0002,2]
[408242542,1773299445197,-901.48617704,0.0002,2]
[408242557,1773299445994,-154105.63208975,0.0002,2]
[408242558,1773299446013,-8825.12234789,0.0002,2]
[408242559,1773299446022,-45.45752869,0.0002,2]
[408242577,1773299733568,251.78387545,0.000144,2]
[408242579,1773299783737,600.0,0.000144,2]
[408242587,1773299970874,-250.0,0.00015,2]
[408242588,1773299970904,-541.1375957,0.00016,2]
[408242589,1773299970931,-250.0,0.000165,2]
[408242590,1773299970960,-600.0,0.000165,2]
[408242591,1773299970987,-2527.51373126,0.000165,2]
[408242592,1773299971015,-536.6571,0.00017,2]
[408242593,1773299971041,-224.69029723,0.00017188,2]
[408242594,1773299971176,-140.01255162,0.00017188,2]
[408242595,1773299973752,-166.66,0.00017498,2]
[408242596,1773299973792,-9666.69,0.000177,2]
[408242597,1773299976801,-10000.01,0.000177,2]
[408242598,1773300000243,-333.3,0.000177,2]
[408242599,1773300000274,-800.0,0.00017808,2]
[408242600,1773300000305,-166.66,0.00017866,2]
[408242601,1773300000334,-166.66,0.00018234,2]
[408242602,1773300000373,-859.59086346,0.00018317,2]
[408242603,1773300000403,-859.59086345,0.00018317,2]
[408242604,1773300000431,-859.59086345,0.00018318,2]
[408242605,1773300000458,-859.59086345,0.00018318,2]
[408242606,1773300000602,-190.04309238,0.00018355,2]
[408242608,1773300003053,-109.95690762,0.00018355,2]
[408242609,1773300003081,-512.49567201,0.00018356,7]
[408242610,1773300003110,-500.0,0.00018356,7]
[408242611,1773300003139,-300.0,0.00018399,2]
[408242612,1773300003171,-300.0,0.00018399,2]
[408242613,1773300003200,-1200.0,0.00018399,2]
[408242614,1773300003230,-517.82070577,0.000184,3]
[408242615,1773300003262,-1258.64032493,0.000184,3]
[408242616,1773300003404,-602.18277934,0.000184,3]
[408242617,1773300006098,-307.0,0.00018355,2]
[408242618,1773300006131,-488.58243888,0.000184,3]
[408242619,1773300006391,-850.0,0.00018417,2]
[408242620,1773300006419,-221.99,0.00018418,2]
[408242621,1773300006517,-6264.86512224,0.00018418,2]
[408242622,1773300026461,-10000.01,0.00018418,2]
[408242623,1773300046824,-10000.01,0.00018418,2]
[408242624,1773300066931,-850.0,0.00018417,2]
[408242625,1773300066973,-8300.01,0.00018418,2]
[408242626,1773300068588,461.86,8.988e-05,2]
[408242627,1773300068774,461.86,9.461e-05,2]
[408242628,1773300068989,461.86,9.934e-05,2]
[408242629,1773300069186,461.86,0.00010407,2]
[408242630,1773300069383,461.86,0.0001088,2]
[408242631,1773300069602,461.86,0.00011354,2]
[408242632,1773300070046,461.86,0.00011827,2]
[408242633,1773300070673,461.86,0.000123,2]
[408242634,1773300070714,461.86,0.00012773,2]
[408242635,1773300070762,461.86,0.00013246,2]
[408242636,1773300070828,461.86,0.00013719,2]
[408242637,1773300071001,461.86,0.00014192,2]
[408242638,1773300087196,-461.86,0.00014665,2]
[408242639,1773300087229,-461.86,0.00015138,2]
[408242640,1773300087267,-461.86,0.00015611,2]
[408242641,1773300087303,-461.86,0.00016084,2]
[408242642,1773300087337,-461.86,0.00016557,2]
[408242643,1773300087374,-461.86,0.0001703,2]
[408242644,1773300087406,-461.86,0.00017503,2]
[408242645,1773300087439,-461.86,0.00017977,2]
[408242646,1773300087641,-2610.25,0.00018418,2]
[408242647,1773300093383,-179.138,0.0001818,2]
[408242648,1773300093419,-3705.78,0.0001818,2]
[408242649,1773300093504,-2230.174,0.00018418,2]
[408242650,1773300099171,-3905.46912224,0.00018418,2]
[408242651,1773300099195,-2189.07175552,0.00018418,2]
[408242652,1773300154567,500.0,9.4e-05,2]
[408242653,1773300186818,160.0,0.000144,2]
[408242654,1773300187066,160.0,0.000144,2]
[408242655,1773300187342,160.0,0.000144,2]
[408242656,1773300187593,160.0,0.000144,2]
[408242657,1773300187859,160.0,0.000144,2]
[408242668,1773300246557,160.0,0.000144,2]
[408242669,1773300304989,160.0,0.000144,2]
[408242670,1773300306945,156.0,0.000144,2]
[408242671,1773300365714,160.0,0.000144,2]
[408242672,1773300424546,161.0,0.000144,2]
[408242674,1773300484846,161.0,0.000144,2]
[408242676,1773300547566,121.88377853,0.000144,2]
[408242677,1773300547590,39.11622147,0.000144,2]
[408242680,1773300586045,-840.83695784,0.00015,30]
[408242681,1773300586074,-500.0,0.00015,30]
[408242682,1773300586100,-156.0,0.00015667,3]
[408242683,1773300586128,-249.72543445,0.000165,2]
[408242684,1773300586156,-601.43520465,0.000165,2]
[408242685,1773300586184,-156.0,0.00016933,3]
[408242686,1773300586213,-513.0,0.00017,2]
[408242687,1773300586241,-392.63,0.00017254,2]
[408242688,1773300586268,-391.726658,0.00017498,7]
[408242689,1773300586295,-200.0,0.00017508,2]
[408242690,1773300586323,-825.95149012,0.00017597,2]
[408242691,1773300586496,-345.39850988,0.00017597,2]
[408242692,1773300591806,-3690.28,0.00017628,2]
[408242693,1773300591834,-782.52338412,0.00017808,2]
[408242694,1773300591888,-1054.40323176,0.0001791,2]
[408242695,1773300597825,-246.06676824,0.0001791,2]
[408242696,1773300597854,-300.0,0.00018199,2]
[408242697,1773300597882,-156.0,0.000182,3]
[408242698,1773300597910,-500.0,0.00018356,7]
[408242699,1773300597939,-300.0,0.00018417,2]
[408242700,1773300597982,-732.0,0.00018417,2]
[408242701,1773300598012,-1029.02,0.00018418,2]
[408242702,1773300598040,-941.88,0.00018418,2]
[408242703,1773300598069,-90.07646352,0.00018418,2]
[408242704,1773300598212,-1409.92353648,0.00018418,2]
[408242710,1773300607002,157.0,0.000144,2]
[408242712,1773300629519,5000.0,0.000144,2]
[408242715,1773300631907,-509.0,0.00017,2]
[408242716,1773300631917,-3757.1190793,0.00018114,2]
[408242717,1773300631926,-157.0,0.000182,3]
[408242718,1773300631935,-4349.70124872,0.00018309,2]
[408242719,1773300631945,-161.85381252,0.00018318,2]
[408242720,1773300631954,-1863.16,0.00018418,2]
[408242721,1773300631964,-3240.0,0.00018418,2]
[408242722,1773300631973,-824.0,0.0001845,2]
[408242723,1773300631982,-284.50364555,0.00018451,2]
[408242724,1773300631994,-155.60713827,0.00018451,2]
[408242725,1773300632003,-219.53476439,0.00018451,2]
[408242726,1773300632013,-500.0,0.00018451,2]
[408242727,1773300632022,-320.7823411,0.00018451,2]
[408242728,1773300632031,-111.05605924,0.00018451,2]
[408242729,1773300632064,-905.49547409,0.00018451,2]
[408242744,1773300632279,-17243.13017262,0.00018451,2]
[408242746,1773300632289,-500.91878262,0.00018473,2]
[408242748,1773300632298,-500.0,0.00018473,2]
[408242750,1773300632307,-1779.0,0.00018521,2]
[408242753,1773300632317,-5727.0,0.00018521,2]
[408242755,1773300632326,-3289.5,0.00018533,2]
[408242757,1773300632335,-150.99,0.00018533,2]
[408242758,1773300632345,-7664.01,0.00018533,2]
[408242761,1773300632354,-2559.3,0.00018533,2]
[408242762,1773300632363,-9999.99,0.00018533,2]
[408242764,1773300632373,-200.0,0.0001854,2]
[408242765,1773300632382,-514.81,0.00018541,2]
[408242766,1773300632391,-514.81,0.00018541,2]
[408242767,1773300632401,-579.23321274,0.00018541,2]
[408242768,1773300632410,-240.68983328,0.00018541,2]
[408242769,1773300632419,-500.0,0.0001855,2]
[408242770,1773300632430,-163.64683579,0.0001855,2]
[408242771,1773300632443,-500.0,0.0001855,2]
[408242772,1773300632452,-500.0,0.0001855,2]
[408242773,1773300632461,-500.0,0.0001855,2]